bitfinex/quotes_ETHUSD_20251221
["timestamp","ask_amount","ask_price","bid_price","bid_amount"]
[1766306919809,2.4161,2995.5,2995.1,1.43900735]
[1766306920420,2.4161,2996.0,2995.1,1.43900735]
[1766306920624,2.4161,2995.8,2995.1,1.43900735]
[1766306922511,2.0707,2995.8,2995.1,1.43900735]
[1766306922824,2.4161,2995.6,2995.1,1.43900735]
[1766306923029,2.0707,2995.6,2995.1,1.43900735]
[1766306923204,0.3454,2995.5,2995.1,1.43900735]
[1766306924227,2.0707,2995.6,2995.1,1.43900735]
[1766306925213,0.3454,2995.8,2995.1,1.43900735]
[1766306925410,0.3454,2996.0,2995.1,1.43900735]
[1766306925614,2.4161,2995.7,2995.1,1.43900735]
[1766306926848,2.0707,2995.5,2995.1,1.43900735]
[1766306927023,0.37736937,2996.0,2995.1,1.43900735]
[1766306927024,2.4161,2995.4,2995.1,1.43900735]
[1766306927336,2.4161,2995.3,2995.1,0.001]
[1766306927523,0.3454,2995.2,2995.1,0.001]
[1766306927838,2.0707,2995.3,2995.1,0.001]
[1766306928857,2.0707,2995.3,2994.9,0.94127114]
[1766306928858,2.4161,2995.3,2994.9,0.94127114]
[1766306929412,2.4161,2995.2,2994.8,0.001]
[1766306930464,3.33814717,2995.7,2994.8,0.001]
[1766306930465,2.4161,2995.7,2994.8,0.001]
[1766306930630,0.3454,2995.6,2994.8,0.001]
[1766306930942,2.4161,2995.4,2994.8,0.001]
[1766306931238,2.0707,2995.2,2994.8,0.001]
[1766306931443,2.4161,2995.1,2994.8,0.001]
[1766306932328,2.4161,2995.0,2994.7,0.001]
[1766306933144,2.4161,2995.2,2994.7,0.001]
[1766306934647,2.4161,2995.1,2994.7,0.001]
[1766306934851,0.3454,2995.0,2994.7,0.001]
[1766306935039,0.3454,2994.9,2994.7,0.001]
[1766306935550,2.4161,2994.9,2994.7,0.001]
[1766306936348,2.4161,2994.8,2994.7,0.001]
[1766306937749,2.4161,2994.8,2994.4,0.001]
[1766306937955,0.3454,2994.7,2994.4,0.001]
[1766306938174,2.4161,2994.7,2994.4,0.001]
[1766306939027,2.0707,2994.5,2994.2,0.001]
[1766306939359,7.50673114,2995.2,2994.2,0.001]
[1766306939360,2.4161,2994.4,2994.2,0.001]
[1766306939547,2.4161,2994.3,2993.9,1.00438642]
[1766306939742,2.4161,2994.2,2993.9,0.001]
[1766306940084,0.24161,2994.4,2993.9,4.16896702]
[1766306940278,2.0707,2995.1,2993.9,3.3410964]
[1766306940436,2.4161,2994.9,2994.3,4.16796702]
[1766306940631,2.4161,2994.9,2994.5,4.16796702]
[1766306940843,0.002,2995.2,2994.7,4.16796702]
[1766306940844,0.434,2995.1,2994.7,4.16796702]
[1766306941066,2.4181,2995.2,2994.7,4.16796702]
[1766306941239,0.434,2995.1,2994.5,4.16796702]
[1766306941442,0.434,2995.1,2994.6,4.16796702]
[1766306941681,0.434,2995.1,2994.5,4.16796702]
[1766306942049,2.5047,2995.1,2994.5,4.16796702]
[1766306942281,2.0707,2995.0,2994.2,4.34301935]
[1766306942443,2.4161,2994.9,2994.3,4.16796702]
[1766306942643,2.4161,2994.9,2994.2,4.82082128]
[1766306942644,2.4161,2994.8,2994.2,1.00326898]
[1766306942867,2.0707,2994.6,2994.1,3.33989687]
[1766306943057,2.4161,2994.5,2993.9,1.00435958]
[1766306943259,0.3454,2994.4,2993.9,0.001]
[1766306943460,0.3454,2994.3,2993.9,0.001]
[1766306943659,2.4161,2994.3,2993.9,0.001]
[1766306944876,2.65771,2994.3,2993.9,0.001]
[1766306945052,0.24161,2994.3,2993.9,4.16896702]
[1766306945253,2.5239,2994.6,2993.9,4.16896702]
[1766306945580,0.434,2994.7,2993.9,4.16896702]
[1766306945581,2.1824,2994.5,2993.9,4.16896702]
[1766306945764,0.434,2994.7,2993.9,0.001]
[1766306945765,2.5239,2994.3,2993.9,0.001]
[1766306946161,2.5239,2994.2,2993.9,0.001]
[1766306950488,2.5239,2994.1,2993.9,0.001]
[1766306950693,0.25239,2994.0,2993.6,0.001]
[1766306950864,2.5239,2994.1,2993.6,0.001]
[1766306951774,0.3415,2994.0,2993.6,0.001]
[1766306951975,2.5239,2993.9,2993.6,0.001]
[1766306952176,0.434,2993.9,2992.8,1.2]
[1766306952494,2.5239,2993.6,2993.1,1.00356768]
[1766306952795,2.5239,2993.6,2992.9,7.50915198]
[1766306952975,2.5239,2993.6,2993.0,3.34111739]
[1766306953174,0.3415,2993.5,2993.0,4.34475222]
[1766306953381,2.5239,2993.5,2993.0,1.00363483]
[1766306953586,2.5239,2993.5,2993.1,4.16796702]
[1766306954468,2.5239,2994.2,2993.3,4.16796702]
[1766306954667,2.5239,2994.2,2993.1,6.68202112]
[1766306954668,0.434,2994.1,2993.9,4.16796702]
[1766306955198,0.434,2994.1,2993.7,4.16796702]
[1766306955399,0.436,2994.3,2993.9,4.16796702]
[1766306955601,2.5239,2994.5,2994.1,4.16796702]
[1766306956284,2.5239,2994.7,2994.1,4.16796702]
[1766306956485,3.33894092,2995.0,2994.5,4.16796702]
[1766306956486,0.3415,2995.0,2994.5,4.16796702]
[1766306956668,2.9579,2994.9,2994.3,4.16796702]
[1766306957368,2.5239,2994.8,2994.3,4.16796702]
[1766306957566,2.5239,2995.0,2994.3,4.16796702]
[1766306957970,2.1824,2994.8,2994.1,4.58476372]
[1766306958299,2.5239,2994.7,2994.2,0.50197637]
[1766306958701,0.434,2995.0,2994.3,4.16796702]
[1766306958891,2.5239,2994.9,2994.3,4.16796702]
[1766306960302,2.1824,2994.9,2994.2,0.50197637]
[1766306960506,2.5239,2994.8,2994.3,4.16796702]
[1766306960820,0.434,2995.0,2994.5,4.16796702]
[1766306961024,2.5239,2995.1,2994.5,4.16796702]
[1766306961180,2.5239,2995.1,2994.6,4.16796702]
[1766306961181,2.9579,2995.1,2994.6,4.16796702]
[1766306961723,0.002,2995.2,2995.0,4.16796702]
[1766306961878,0.002,2995.2,2994.8,4.16796702]
[1766306962078,0.002,2995.2,2994.8,0.4167967]
[1766306962312,2.5259,2995.5,2995.1,4.16796702]
[1766306962517,2.5259,2995.5,2994.5,0.03339455]
[1766306962827,2.5259,2995.5,2995.0,4.16796702]
[1766306963339,2.5259,2995.5,2994.9,4.16796702]
[1766306965318,2.0019,2995.3,2994.8,0.435]
[1766306965630,2.3559,2995.1,2994.7,0.435]
[1766306965801,2.3559,2995.1,2994.7,0.99561018]
[1766306966230,0.354,2995.0,2994.5,1.00313479]
[1766306966418,2.3559,2995.0,2994.1,7.50778725]
[1766306966731,0.354,2994.9,2994.3,4.16796702]
[1766306966930,2.3559,2994.9,2994.3,4.16796702]
[1766306967301,2.7899,2995.2,2994.5,4.16796702]
[1766306967515,3.06889,2995.2,2994.5,4.16796702]
[1766306968113,3.06889,2995.2,2994.7,4.16796702]
[1766306968332,0.71299,2995.2,2994.7,4.16796702]
[1766306968522,0.27899,2995.2,2994.7,4.16796702]
[1766306968724,0.71299,2995.2,2994.7,4.16796702]
[1766306968906,0.71299,2995.2,2994.5,4.16796702]
[1766306968907,0.354,2995.0,2994.5,4.16796702]
[1766306969107,2.3579,2994.9,2994.3,4.16796702]
[1766306969703,2.3579,2994.9,2994.5,4.16796702]
[1766306970012,0.002,2994.9,2994.5,4.16796702]
[1766306971411,0.002,2994.9,2994.3,3.33967529]
[1766306971709,0.002,2994.9,2994.5,4.16796702]
[1766306972044,0.002,2994.9,2994.5,4.16784079]
[1766306974939,0.3523,2994.8,2994.3,4.16784079]
[1766306975141,2.4119,2994.8,2994.3,4.16784079]
[1766306975720,2.4119,2994.8,2994.5,4.16784079]
[1766306975920,0.002,2994.9,2994.5,4.16784079]
[1766306976450,0.434,2995.1,2994.7,4.16784079]
[1766306979536,0.434,2995.1,2994.4,3.33946694]
[1766306979537,0.434,2995.1,2994.9,4.16784079]
[1766306980975,0.002,2995.5,2994.7,0.435]
[1766306981155,2.4119,2995.4,2995.0,4.16784079]
[1766306981323,2.4119,2995.4,2994.8,4.16784079]
[1766306983053,0.3523,2995.2,2994.7,0.435]
[1766306983758,2.4119,2995.2,2994.7,0.435]
[1766306984160,2.4119,2995.2,2994.8,4.16784079]
[1766306987263,0.002,2995.4,2995.0,4.16784079]
[1766306988847,0.002,2995.5,2995.2,4.16784079]
[1766306989575,0.002,2995.5,2995.0,4.16784079]
[1766306989763,0.002,2996.1,2995.2,7.50645553]
[1766306989935,2.0596,2996.0,2995.2,4.16784079]
[1766306990262,2.4119,2995.9,2995.2,4.16784079]
[1766306991375,0.3523,2995.8,2995.1,0.435]
[1766306991585,2.4119,2995.7,2995.1,0.435]
[1766306992837,0.002,2995.5,2995.1,0.435]
[1766306993554,0.002,2995.5,2995.1,3.7737744]
[1766306993886,0.002,2995.5,2995.1,0.435]
[1766306996972,0.002,2995.5,2995.1,3.77378055]
[1766306997362,0.002,2995.5,2995.1,0.435]
[1766306998780,0.002,2995.5,2995.1,3.77377799]
[1766306999993,0.002,2995.5,2995.1,0.435]
[1766307000179,0.002,2995.5,2995.1,3.77378174]
[1766307000557,0.3523,2995.9,2995.1,3.77378174]
[1766307000762,2.4119,2995.9,2995.1,3.77378174]
[1766307001388,0.434,2996.0,2995.2,4.16615386]
[1766307002370,2.8459,2996.0,2995.1,3.77378174]
[1766307002600,2.4139,2995.9,2995.1,3.77378174]
[1766307002983,2.4139,2995.9,2995.1,7.11256842]
[1766307003168,0.002,2996.1,2995.3,4.16615386]
[1766307003487,0.436,2996.4,2995.6,4.16615386]
[1766307003688,0.436,2996.4,2995.6,0.435]
[1766307004300,0.3523,2996.2,2995.2,4.16615386]
[1766307004468,2.4119,2996.1,2995.3,3.77346812]
[1766307004665,0.3523,2996.0,2995.3,3.77346812]
[1766307004863,2.4119,2996.0,2995.3,3.77346812]
[1766307007098,2.4119,2996.0,2995.3,0.435]
[1766307007478,2.4047,2996.0,2995.1,1.00284641]
[1766307007674,2.4539,2995.8,2995.2,0.435]
[1766307008280,0.3451,2995.7,2995.2,0.435]
[1766307008489,2.4539,2995.7,2995.2,0.435]
[1766307009708,0.3451,2995.6,2995.0,3.33989019]
[1766307010010,2.4539,2995.6,2995.0,3.77489019]
[1766307011017,2.4539,2995.6,2995.0,0.436]
[1766307011678,2.4539,2995.5,2995.0,0.436]
[1766307012478,2.4559,2995.7,2995.0,3.77489113]
[1766307012678,2.4559,2995.7,2995.0,0.436]
[1766307014286,2.70149,2995.7,2995.0,3.77486328]
[1766307014722,2.70149,2995.7,2995.0,0.436]
[1766307018720,0.434,2996.0,2995.0,3.77489816]
[1766307018907,0.434,2996.0,2995.0,4.60278076]
[1766307019108,0.3451,2995.6,2995.0,0.436]
[1766307019293,0.3451,2995.5,2995.0,0.436]
[1766307021294,2.4539,2995.5,2995.0,0.436]
[1766307022021,2.4539,2995.5,2995.0,3.77489748]
[1766307022224,2.4539,2995.5,2995.0,0.436]
[1766307030041,2.1912,2995.3,2995.0,0.001]
[1766307030328,0.3402,2995.4,2995.0,0.001]
[1766307030527,5.86924533,2996.0,2995.0,0.001]
[1766307030705,0.3402,2995.8,2995.0,0.001]
[1766307030896,2.5314,2995.8,2995.0,0.001]
[1766307033442,2.5314,2995.6,2995.0,0.001]
[1766307034535,2.5334,2995.8,2995.0,0.001]
[1766307034831,3.19729814,2995.8,2995.0,0.001]
[1766307035732,3.63129814,2995.8,2995.0,0.001]
[1766307036031,3.19729814,2995.8,2995.0,0.001]
[1766307036208,0.002,2995.8,2995.0,0.001]
[1766307036414,0.002,2995.8,2995.2,4.16678076]
[1766307038036,0.002,2995.8,2995.2,7.50543413]
[1766307038205,0.002,2995.8,2995.2,4.16678076]
[1766307039044,0.002,2995.8,2995.2,7.50544982]
[1766307039741,0.002,2995.8,2995.2,4.16678076]
[1766307042155,0.002,2995.8,2995.1,7.50552062]
[1766307042344,0.002,2995.8,2995.0,1.43894028]
[1766307042515,0.002,2995.8,2995.0,0.436]
[1766307043162,0.002,2995.8,2995.1,7.50553047]
[1766307043719,0.002,2995.8,2995.1,4.16678076]
[1766307043922,0.002,2995.8,2995.1,7.50555937]
[1766307045150,0.002,2995.8,2995.1,4.16678076]
[1766307047051,0.3589,2995.7,2995.0,0.001]
[1766307047250,0.002,2995.8,2995.0,0.001]
[1766307047251,0.3589,2995.5,2995.0,0.436]
[1766307047450,2.5485,2995.5,2995.0,0.436]
[1766307047650,0.3589,2995.4,2995.0,0.436]
[1766307048555,0.3589,2995.4,2995.0,0.001]
[1766307049128,2.5485,2995.4,2995.0,0.001]
[1766307049466,2.5485,2995.6,2995.0,0.001]
[1766307049690,2.1896,2995.6,2995.0,0.001]
[1766307049954,2.5485,2995.5,2995.0,0.001]
[1766307051031,2.9825,2995.7,2995.0,0.001]
[1766307051752,0.434,2995.7,2995.0,4.16761806]
[1766307052956,0.434,2995.7,2995.0,0.001]
[1766307053331,2.9825,2995.7,2995.0,0.001]
[1766307054366,0.002,2995.8,2995.0,0.001]
[1766307054767,2.1896,2995.6,2995.0,0.001]
[1766307055063,2.5485,2995.6,2995.0,0.001]
[1766307058957,0.002,2995.8,2995.0,0.001]
[1766307059459,0.002,2995.8,2995.2,4.16588874]
[1766307059876,0.002,2995.8,2995.4,4.16588874]
[1766307060276,0.002,2995.8,2995.3,4.16588874]
[1766307061180,0.002,2995.8,2995.1,7.50465724]
[1766307061751,0.002,2995.8,2995.2,3.33866811]
[1766307061949,0.002,2995.8,2995.5,4.16588874]
[1766307062180,0.436,2996.2,2995.5,4.16588874]
[1766307062381,2.9845,2996.2,2995.3,4.16588874]
[1766307062574,2.5485,2996.1,2995.3,4.16588874]
[1766307062877,0.002,2995.8,2995.3,4.16588874]
[1766307063184,0.002,2995.8,2995.1,7.50463776]
[1766307063383,0.002,2995.8,2995.1,7.50464493]
[1766307065689,0.002,2995.8,2995.1,4.16588874]
[1766307065690,2.5382,2995.8,2995.1,4.16588874]
[1766307065889,2.5362,2995.7,2995.0,0.001]
[1766307066070,2.5362,2995.7,2995.1,4.16588874]
[1766307067388,2.5362,2995.7,2995.0,0.001]
[1766307067593,2.5362,2995.6,2995.1,0.435]
[1766307067896,2.5382,2995.8,2995.1,4.60088874]
[1766307068461,2.5382,2995.8,2995.3,4.16588874]
[1766307068661,0.002,2995.8,2995.5,4.16588874]
[1766307068891,0.434,2996.1,2995.5,4.16588874]
[1766307069364,0.002,2995.8,2995.5,4.16588874]
[1766307070570,0.002,2995.8,2995.3,4.16588874]
[1766307071484,0.002,2995.8,2995.1,1.43790005]
[1766307071485,0.002,2995.8,2995.1,4.16588874]
[1766307071789,0.002,2995.8,2995.3,0.435]
[1766307072092,0.002,2995.8,2995.3,4.60088874]
[1766307073892,2.5382,2995.8,2995.3,0.435]
[1766307074086,0.3609,2995.7,2995.3,0.435]
[1766307074266,2.5362,2995.7,2995.3,0.435]
[1766307074805,2.5382,2995.8,2995.3,0.435]
[1766307075506,2.5382,2995.8,2995.2,3.77364492]
[1766307075891,2.5382,2995.8,2995.2,0.435]
[1766307076573,2.5382,2995.8,2995.2,3.77364306]
[1766307077193,0.002,2995.8,2995.2,3.77364306]
[1766307080603,0.002,2995.8,2995.3,4.16588874]
[1766307080790,0.436,2996.2,2995.5,4.16588874]
[1766307081904,0.436,2996.2,2995.5,7.50418801]
[1766307082198,0.002,2995.8,2995.5,7.50418801]
[1766307083107,2.5362,2995.7,2995.5,0.435]
[1766307083316,0.002,2995.8,2995.5,0.435]
[1766307083806,0.3609,2995.7,2995.3,0.435]
[1766307084312,0.436,2996.2,2995.5,3.33834084]
[1766307084608,0.002,2996.2,2995.7,4.16588874]
[1766307084808,0.002,2996.2,2995.5,4.16588874]
[1766307085878,0.002,2996.2,2995.3,8.37536196]
[1766307086974,0.002,2996.2,2995.5,7.50422103]
[1766307088008,0.002,2996.2,2995.5,4.16588874]
[1766307088302,0.002,2996.2,2995.5,7.50419855]
[1766307088525,0.002,2996.2,2995.3,4.60088874]
[1766307088526,2.5209,2996.1,2995.3,4.60088874]
[1766307088811,2.5209,2996.1,2995.3,0.435]
[1766307089011,0.3655,2996.0,2995.3,0.435]
[1766307089193,2.5209,2996.0,2995.3,0.435]
[1766307089583,2.5209,2995.9,2995.1,7.50562853]
[1766307089908,2.5209,2995.9,2995.3,0.435]
[1766307090407,0.3655,2995.7,2995.3,0.435]
[1766307090708,0.002,2996.2,2995.1,0.001]
[1766307090709,2.5209,2995.5,2995.1,0.001]
[1766307092211,0.3655,2995.2,2995.1,0.001]
[1766307092391,2.5209,2995.2,2994.7,0.87]
[1766307092781,2.5209,2995.2,2994.7,0.435]
[1766307093318,2.1554,2995.8,2994.7,0.435]
[1766307093533,2.1554,2995.4,2994.7,4.60087775]
[1766307093687,2.5209,2995.4,2994.7,0.435]
[1766307093893,2.1554,2995.4,2994.7,0.435]
[1766307094109,2.5209,2995.3,2994.7,0.435]
[1766307096719,4.01364981,2995.7,2994.7,0.435]
[1766307096720,2.4072,2995.2,2994.7,0.435]
[1766307097021,0.3434,2995.5,2994.7,3.7742125]
[1766307097222,2.4072,2995.4,2994.7,7.94009025]
[1766307098432,2.4072,2995.4,2994.7,0.435]
[1766307098601,0.3434,2995.3,2994.7,0.435]
[1766307098934,2.4072,2995.3,2994.7,0.435]
[1766307099132,2.0638,2995.3,2994.7,0.435]
[1766307099334,2.4072,2995.2,2994.7,0.435]
[1766307100031,2.0638,2995.2,2994.6,0.001]
[1766307100329,0.23720728,2995.3,2994.6,0.001]
[1766307100330,2.4072,2994.9,2994.6,0.001]
[1766307104143,2.4072,2994.8,2994.6,0.001]
[1766307107946,2.4072,2994.8,2994.6,0.13477904]
[1766307109248,2.4072,2994.8,2994.6,0.001]
[1766307109446,2.64792,2994.8,2994.6,0.001]
[1766307119067,0.24072,2994.8,2994.3,0.001]
[1766307119255,0.002,2995.0,2994.3,0.001]
[1766307119256,2.4072,2994.5,2994.3,0.001]
[1766307119457,0.3434,2994.8,2994.4,0.13677904]
[1766307119634,2.0638,2994.7,2994.4,0.13677904]
[1766307119832,2.4072,2994.7,2994.4,0.13677904]
[1766307120236,2.4072,2994.7,2994.3,0.001]
[1766307121432,2.4072,2994.9,2994.3,0.001]
[1766307121661,0.57481329,2994.8,2994.3,0.001]
[1766307122358,2.4072,2994.9,2994.3,0.001]
[1766307122742,0.3434,2994.8,2994.3,0.001]
[1766307122965,2.4072,2994.8,2994.3,0.001]
[1766307123568,0.3434,2994.7,2994.3,0.001]
[1766307125366,2.3627,2994.7,2994.3,0.001]
[1766307125574,2.3914,2994.9,2994.3,0.001]
[1766307125751,0.23934,2994.8,2994.3,0.001]
[1766307126375,2.63074,2994.8,2994.3,0.001]
[1766307126874,2.3914,2994.7,2994.3,0.001]
[1766307129578,0.23934,2994.8,2994.3,0.001]
[1766307129776,2.0213,2995.0,2994.3,0.001]
[1766307129951,2.3914,2994.9,2994.3,0.436]
[1766307132280,0.002,2995.0,2994.3,0.001]
[1766307132493,2.3934,2995.0,2994.4,1.00327233]
[1766307134889,0.002,2995.0,2994.4,1.00327233]
[1766307135396,2.0193,2994.9,2994.4,1.00327233]
[1766307135704,2.3914,2994.6,2994.3,0.001]
[1766307135880,0.3721,2994.8,2994.3,0.001]
[1766307136804,0.3741,2995.0,2994.3,0.001]
[1766307136964,0.002,2995.0,2994.3,0.001]
[1766307137160,0.002,2995.0,2994.5,4.16937701]
[1766307137483,0.002,2995.3,2994.5,4.16937701]
[1766307137685,2.3934,2995.3,2994.5,4.16937701]
[1766307137871,2.0193,2995.1,2994.4,0.436]
[1766307138077,2.3914,2995.1,2994.4,0.436]
[1766307138775,0.002,2995.3,2994.4,0.436]
[1766307138979,0.002,2995.3,2994.4,3.77551968]
[1766307138980,2.3934,2995.3,2994.4,3.77551968]
[1766307139461,2.3934,2995.3,2994.4,0.436]
[1766307139462,2.67424,2995.2,2994.4,0.436]
[1766307139779,2.3914,2995.1,2994.4,0.436]
[1766307140394,0.3721,2995.0,2994.5,1.00322201]
[1766307140589,2.3914,2995.0,2994.5,1.00322201]
[1766307140801,2.3914,2995.0,2994.4,0.436]
[1766307140995,2.3914,2995.0,2994.5,1.00322201]
[1766307141195,2.3914,2995.0,2994.3,0.437]
[1766307142006,2.3914,2995.0,2994.4,1.00325891]
[1766307143009,0.002,2995.1,2994.4,1.00325891]
[1766307143505,0.002,2995.1,2994.4,4.34279948]
[1766307146617,0.002,2995.1,2994.4,3.33954057]
[1766307146778,0.002,2995.1,2994.5,1.0031784]
[1766307149321,0.002,2995.3,2994.5,4.34260476]
[1766307149621,0.002,2995.3,2994.5,3.33942636]
[1766307149820,0.002,2995.1,2994.5,3.33942636]
[1766307150024,0.002,2995.1,2994.6,1.0031784]
[1766307151134,0.002,2995.3,2994.7,0.436]
[1766307153501,0.002,2995.3,2994.7,1.43914485]
[1766307154638,2.4331,2995.3,2994.7,1.43914485]
[1766307155719,0.002,2995.3,2994.7,0.436]
[1766307155901,0.002,2995.3,2994.8,1.00314485]
[1766307156632,2.5026,2995.0,2994.2,0.436]
[1766307156993,2.5026,2995.2,2994.4,4.34278786]
[1766307157224,2.5026,2995.2,2994.4,1.00422872]
[1766307157618,2.5026,2995.1,2994.4,1.00422872]
[1766307160429,0.002,2995.3,2994.4,7.68331495]
[1766307160729,0.002,2995.3,2994.4,4.34374776]
[1766307164720,0.002,2995.3,2994.4,3.34051904]
[1766307164905,0.002,2995.3,2994.5,1.0031784]
[1766307165118,0.002,2995.3,2994.6,0.436]
[1766307165837,0.002,2995.3,2994.6,1.4391784]
[1766307167739,2.5046,2995.3,2994.6,1.4391784]
[1766307168147,2.5046,2995.3,2994.6,1.0031784]
[1766307168148,2.1402,2995.2,2994.6,1.0031784]
[1766307168357,2.5026,2995.1,2994.6,0.436]
[1766307169937,2.5026,2995.1,2994.6,1.4391784]
[1766307172218,0.3624,2995.0,2994.5,0.436]
[1766307172420,2.5026,2995.0,2994.5,0.436]
[1766307172621,2.5026,2995.0,2994.5,1.43921865]
[1766307173319,2.5026,2995.2,2994.5,1.43921865]
[1766307173558,2.5026,2995.2,2994.5,1.44021865]
[1766307174948,2.5026,2995.2,2994.5,4.77967083]
[1766307178253,2.5026,2995.2,2994.5,1.44021865]
[1766307178856,0.002,2995.3,2994.5,4.77966534]
[1766307179229,2.5046,2995.3,2994.5,4.77966534]
[1766307180254,2.5026,2995.2,2994.5,1.44021865]
[1766307180459,0.3624,2995.1,2994.5,1.44021865]
[1766307180850,2.5026,2995.1,2994.5,1.44021865]
[1766307182464,2.5046,2995.1,2994.5,0.437]
[1766307188071,2.0315,2995.0,2994.5,0.437]
[1766307188558,0.3517,2995.1,2994.5,0.437]
[1766307188764,2.3832,2995.1,2994.5,0.437]
[1766307188965,0.002,2995.1,2994.8,4.16814092]
[1766307189267,0.002,2995.1,2994.5,4.60514092]
[1766307189442,2.0335,2995.1,2994.5,0.437]
[1766307189639,0.3497,2995.0,2994.5,0.001]
[1766307189952,2.3812,2995.0,2994.5,0.437]
[1766307196188,2.61952,2995.0,2994.5,0.001]
[1766307196478,2.3812,2994.9,2994.5,0.001]
[1766307199987,0.3474,2994.8,2994.5,0.001]
[1766307201278,2.3805,2994.7,2994.5,0.001]
[1766307201576,0.23832,2995.0,2994.5,0.001]
[1766307201577,2.3805,2994.9,2994.5,0.001]
[1766307201771,2.97646089,2994.9,2994.5,0.001]
[1766307202480,2.3805,2994.8,2994.5,0.001]
[1766307208885,2.3825,2995.1,2994.5,0.001]
[1766307209062,2.8175,2995.1,2994.5,0.001]
[1766307209262,1.05281391,2995.1,2994.5,0.001]
[1766307209462,2.3805,2995.0,2994.5,0.001]
[1766307209987,1.05281391,2995.1,2994.5,0.001]
[1766307210290,0.437,2995.1,2994.5,0.001]
[1766307211390,0.002,2995.1,2994.5,0.001]
[1766307212390,0.002,2995.1,2994.6,4.16891056]
[1766307212582,0.002,2995.1,2994.5,0.001]
[1766307212893,2.3968,2995.1,2994.5,0.001]
[1766307213393,2.3948,2995.0,2994.5,0.001]
[1766307219091,0.3424,2994.7,2994.5,0.001]
[1766307219262,0.002,2995.1,2994.5,0.001]
[1766307219465,0.3424,2994.9,2994.5,0.001]
[1766307219983,2.1087,2995.0,2994.5,0.001]
[1766307220385,2.4511,2995.0,2994.5,0.001]
[1766307220597,0.24531,2994.9,2994.5,0.001]
[1766307220989,2.69641,2994.9,2994.5,0.001]
[1766307224999,2.4511,2994.9,2994.5,0.001]
[1766307225788,2.4531,2995.1,2994.5,0.001]
[1766307226599,0.3424,2995.0,2994.5,0.001]
[1766307226795,2.4511,2994.9,2994.5,0.001]
[1766307227092,0.24511,2994.8,2994.5,0.001]
[1766307227296,2.4511,2994.9,2994.5,0.001]
[1766307227671,0.002,2995.1,2994.5,0.001]
[1766307227870,2.4511,2995.0,2994.5,0.001]
[1766307229286,2.4511,2994.9,2994.5,0.001]
[1766307231294,2.1087,2994.9,2994.5,0.001]
[1766307231494,0.3424,2994.8,2994.5,0.001]
[1766307231689,2.4511,2994.8,2994.5,0.001]
[1766307231896,2.4511,2994.7,2994.5,0.001]
[1766307237908,2.1087,2995.0,2994.5,0.001]
[1766307238211,2.4511,2994.9,2994.5,0.001]
[1766307240421,2.1107,2995.1,2994.5,0.001]
[1766307240593,0.3424,2994.9,2994.5,0.001]
[1766307240792,2.4511,2994.9,2994.5,0.001]
[1766307241112,2.1087,2994.9,2994.5,0.001]
[1766307241327,2.4511,2994.7,2994.5,0.001]
[1766307242128,2.4511,2995.0,2994.5,0.001]
[1766307242314,2.4511,2994.9,2994.5,0.001]
[1766307243717,2.1087,2994.9,2994.5,0.001]
[1766307244013,0.3424,2994.8,2994.5,0.001]
[1766307244711,2.4511,2994.6,2994.4,0.001]
[1766307246917,2.514,2994.5,2994.3,0.001]
[1766307247298,2.514,2994.8,2994.4,0.001]
[1766307247501,0.62880818,2994.7,2994.4,0.001]
[1766307248691,3.14280818,2994.7,2994.4,0.001]
[1766307250818,0.62880818,2994.7,2994.4,0.001]
[1766307250992,2.514,2994.6,2994.4,0.001]
[1766307253820,0.62880818,2994.7,2994.4,0.001]
[1766307254027,0.64819295,2994.6,2994.4,0.001]
[1766307254224,2.514,2994.7,2994.4,0.001]
[1766307255007,0.002,2994.6,2994.4,0.001]
[1766307270061,0.435,2994.9,2994.4,0.001]
[1766307270236,2.5033,2994.8,2994.4,0.001]
[1766307274662,2.1287,2994.8,2994.4,0.001]
[1766307274868,2.5033,2994.7,2994.4,0.001]
[1766307277460,0.59226416,2994.8,2994.4,0.438]
[1766307277667,2.3736,2994.8,2994.4,0.438]
[1766307278752,0.002,2994.8,2994.4,0.438]
[1766307279066,0.002,2994.8,2994.4,0.001]
[1766307279435,0.002,2994.8,2994.5,0.438]
[1766307286938,2.3736,2994.8,2994.5,0.438]
[1766307287769,2.0108,2994.8,2994.5,0.438]
[1766307287973,2.3736,2994.8,2994.5,0.438]
[1766307288878,2.0108,2994.8,2994.5,0.438]
[1766307289193,2.3736,2994.8,2994.5,0.438]
[1766307292778,2.3716,2994.7,2994.5,0.438]
[1766307293546,0.3628,2994.6,2994.5,0.438]
[1766307293878,3.34115036,2994.8,2994.4,0.001]
[1766307293879,0.3648,2994.8,2994.4,0.438]
[1766307294181,0.37038545,2994.7,2994.3,0.001]
[1766307294359,0.37038545,2994.7,2994.3,0.439]
[1766307295985,2.3716,2994.6,2994.3,0.439]
[1766307296479,2.3716,2994.6,2994.3,0.001]
[1766307296643,2.3716,2994.6,2994.4,0.439]
[1766307296845,2.64599855,2994.6,2994.4,0.439]
[1766307297183,0.27439855,2994.6,2994.4,0.439]
[1766307297363,0.37038545,2994.7,2994.4,0.439]